bitfinex/quotes_ETHUSD_20240822
["timestamp","ask_amount","ask_price","bid_price","bid_amount"]
[1724307307266,9.8406,2629.8,2629.3,4.018381]
[1724307309337,0.05864238,2629.7,2629.3,4.018381]
[1724307309770,9.8406,2629.8,2629.3,4.018381]
[1724307310271,0.05865236,2629.7,2629.3,4.018381]
[1724307310651,9.8406,2629.8,2629.3,4.018381]
[1724307310972,0.05865236,2629.7,2629.4,4.5852491]
[1724307311174,9.79638436,2630.3,2629.6,3.80285]
[1724307311480,0.05889092,2630.2,2629.8,3.80256]
[1724307311781,9.3992,2630.3,2629.8,3.80256]
[1724307311947,0.05690444,2630.1,2629.7,3.0]
[1724307312155,0.05692031,2630.2,2629.7,3.0]
[1724307312351,0.05688857,2630.0,2629.7,6.80271]
[1724307312561,0.05701239,2629.9,2629.7,3.0]
[1724307312956,9.065,2630.6,2629.8,9.8901]
[1724307313155,9.065,2630.6,2629.9,3.55]
[1724307313371,0.05710762,2630.5,2629.9,3.55]
[1724307314081,9.065,2630.4,2629.9,3.0]
[1724307314268,0.91221076,2630.3,2629.6,3.0]
[1724307314668,0.0571947,2630.2,2629.6,3.0]
[1724307315950,0.0571947,2630.2,2629.6,3.54806199]
[1724307316865,0.0571947,2630.2,2629.6,3.0]
[1724307317067,1.06063525,2630.2,2629.6,3.0]
[1724307317693,1.06063525,2630.2,2629.6,7.35090199]
[1724307317893,0.0571947,2630.2,2629.8,0.7]
[1724307318203,0.0571947,2630.2,2629.9,3.8024]
[1724307318403,0.05711897,2630.1,2630.0,3.0]
[1724307318606,9.065,2630.4,2630.0,3.0]
[1724307318903,0.05715071,2630.3,2630.0,3.0]
[1724307319495,0.05715071,2630.3,2630.0,8.542361]
[1724307319692,0.05715071,2630.3,2630.0,4.740091]
[1724307319878,0.05715071,2630.3,2629.8,0.7]
[1724307319879,9.065,2630.4,2629.8,3.7]
[1724307320082,9.6671,2630.9,2629.8,7.50255]
[1724307320385,1.00642903,2630.8,2629.9,1.8421718]
[1724307320703,9.6671,2630.7,2629.9,3.55]
[1724307320910,9.72461349,2630.7,2629.9,0.55]
[1724307321504,9.72461349,2630.7,2629.8,3.7]
[1724307321673,9.6671,2630.5,2629.9,0.4757539]
[1724307322077,0.05747087,2630.4,2629.9,0.4757539]
[1724307322905,0.05747087,2630.4,2629.8,0.7]
[1724307324503,0.05747087,2630.4,2629.9,1.3]
[1724307324703,1.12717409,2630.4,2629.9,1.3]
[1724307325275,9.6671,2630.2,2629.7,3.0]
[1724307325591,9.6671,2630.2,2629.6,4.3]
[1724307325592,0.05736839,2630.1,2629.6,4.3]
[1724307325793,0.05736839,2630.1,2629.6,1.3]
[1724307325972,9.6671,2630.2,2629.6,1.3]
[1724307326171,10.74078032,2630.2,2629.6,1.3]
[1724307326373,0.05736839,2630.1,2629.6,1.3]
[1724307330113,9.9388,2630.0,2629.5,4.3]
[1724307330287,0.99961684,2629.9,2629.5,1.3]
[1724307330482,1.05665752,2629.9,2629.5,1.3]
[1724307335686,0.05704068,2629.9,2629.5,1.3]
[1724307335887,0.05704068,2629.9,2629.8,3.80257]
[1724307336095,9.1796,2630.6,2629.8,17.34247]
[1724307336297,9.1796,2630.6,2630.1,1.3]
[1724307336618,10.09756,2630.6,2630.1,1.3]
[1724307339290,0.05323116,2630.5,2630.1,1.3]
[1724307340029,0.05323116,2630.5,2629.9,5.15623028]
[1724307340203,0.05323116,2630.5,2629.9,4.77583028]
[1724307340404,9.9262,2630.4,2629.7,4.77583028]
[1724307340601,0.05336903,2630.3,2629.7,4.77583028]
[1724307341221,0.05336903,2630.3,2629.7,4.3]
[1724307341408,1.15283384,2630.3,2629.7,1.3]
[1724307342425,1.15283384,2630.3,2629.6,4.40623028]
[1724307342726,1.15283384,2630.3,2629.6,4.02583028]
[1724307342921,9.3775,2630.2,2629.6,3.55]
[1724307343114,9.43099283,2630.2,2629.7,3.0]
[1724307343539,9.43099283,2630.2,2629.6,1.02583028]
[1724307344399,9.43099283,2630.2,2629.6,0.55]
[1724307345025,9.43099283,2630.2,2629.7,0.47577321]
[1724307345413,9.43099283,2630.2,2629.8,0.47577321]
[1724307345735,9.43099283,2630.2,2629.7,0.47577321]
[1724307345960,9.43099283,2630.2,2629.8,0.47577321]
[1724307346160,9.43099283,2630.2,2629.9,0.47577321]
[1724307346299,9.43099283,2630.2,2629.7,3.47577321]
[1724307346498,9.43099283,2630.2,2629.8,3.47577321]
[1724307346731,10.37409211,2630.2,2629.7,0.47577321]
[1724307347130,10.37409211,2630.2,2629.8,0.47577321]
[1724307347382,10.37409211,2630.2,2629.7,0.47577321]
[1724307347506,1.03740921,2630.1,2629.8,0.47577321]
[1724307347707,1.0889802,2630.1,2629.9,0.47577321]
[1724307347908,0.05157099,2630.1,2630.0,0.47577321]
[1724307348125,0.05157099,2630.1,2629.7,0.47577321]
[1724307348339,0.05157099,2630.1,2629.8,0.47577321]
[1724307348555,0.05157099,2630.1,2629.9,0.47577321]
[1724307348706,0.05157099,2630.1,2630.0,0.47577321]
[1724307349068,0.05157099,2630.1,2629.5,6.47883641]
[1724307349069,9.3766,2630.0,2629.7,0.47577321]
[1724307349248,9.3766,2630.0,2629.8,0.47577321]
[1724307349422,9.3766,2630.0,2629.9,0.47577321]
[1724307350358,10.31426,2630.0,2629.9,0.47577321]
[1724307351775,10.31426,2630.0,2629.9,0.47581916]
[1724307353208,9.3766,2630.0,2629.9,0.47581916]
[1724307353409,9.769,2630.4,2629.9,0.47581916]
[1724307353607,9.769,2630.4,2629.6,9.8775396]
[1724307353608,9.769,2630.4,2630.0,0.47581916]
[1724307353812,9.769,2630.4,2630.1,0.47581916]
[1724307354050,11.75108226,2630.4,2629.7,4.98280689]
[1724307354350,11.75108226,2630.4,2629.8,1.79765471]
[1724307354534,11.75108226,2630.4,2629.9,0.47578418]
[1724307354874,2.07210395,2630.3,2630.0,0.47578418]
[1724307355015,2.07210395,2630.3,2630.1,0.47578418]
[1724307355216,2.07210395,2630.3,2630.2,0.47579387]
[1724307357914,2.07210395,2630.3,2629.7,4.98280689]
[1724307358115,0.05148781,2630.3,2629.8,1.32190345]
[1724307360680,0.05148781,2630.3,2629.7,4.98280689]
[1724307361635,0.05148781,2630.3,2629.6,3.0]
[1724307361965,0.05148781,2630.3,2629.7,1.32194754]
[1724307362524,0.05148781,2630.3,2629.7,2.62194754]
[1724307362735,1.29471885,2630.3,2629.8,3.0]
[1724307362916,1.29471885,2630.3,2629.7,1.3]
[1724307363116,9.9967,2630.2,2629.7,1.3]
[1724307363420,0.05148341,2630.1,2629.7,1.3]
[1724307363631,0.05148341,2630.1,2629.6,3.0]
[1724307363852,9.9967,2630.0,2629.6,3.0]
[1724307364037,9.9967,2630.0,2629.4,5.0959396]
[1724307364292,0.05147167,2629.9,2629.5,1.32203269]
[1724307364421,0.05147167,2629.9,2629.5,4.32203269]
[1724307364620,0.05147167,2629.9,2629.6,1.32203269]
[1724307364880,0.05147167,2629.9,2629.6,3.0]
[1724307365271,0.05147167,2629.9,2629.4,5.0959396]
[1724307365445,0.05147167,2629.9,2629.5,1.32203563]
[1724307365784,0.05147167,2629.9,2629.5,4.32203563]
[1724307365921,0.05147167,2629.9,2629.5,3.0]
[1724307366152,0.05147167,2629.9,2629.4,2.0959396]
[1724307366353,0.05147167,2629.9,2629.5,1.32204857]
[1724307366658,0.05147167,2629.9,2629.5,4.32204857]
[1724307366880,0.05147167,2629.9,2629.5,3.0]
[1724307367070,0.05147167,2629.9,2629.4,2.0959396]
[1724307367265,0.05147167,2629.9,2629.5,1.32205024]
[1724307367590,0.05147167,2629.9,2629.5,3.0]
[1724307367591,9.1331,2629.8,2629.5,3.0]
[1724307367791,9.1331,2629.8,2629.3,3.0]
[1724307368106,0.05129005,2629.7,2629.2,3.7959396]
[1724307368281,0.05129005,2629.7,2629.3,1.32217796]
[1724307368482,1.04843901,2629.7,2629.3,1.32217796]
[1724307368795,0.05125419,2629.6,2629.3,1.32217796]
[1724307369498,9.1331,2629.8,2629.3,1.32217796]
[1724307369663,9.1331,2629.8,2629.3,2.62217796]
[1724307369994,0.05121511,2629.7,2629.4,4.32210402]
[1724307370209,0.05121511,2629.7,2629.4,3.0]
[1724307370358,9.1331,2629.8,2629.3,1.3]
[1724307370761,0.05112426,2629.6,2629.3,1.3]
[1724307370990,9.1331,2629.8,2629.3,1.3]
[1724307371371,0.05114014,2629.7,2629.3,1.3]
[1724307371595,9.1331,2629.8,2629.3,1.3]
[1724307371797,0.05112426,2629.6,2629.4,1.32208723]
[1724307371962,0.05114014,2629.7,2629.4,4.32208723]
[1724307372159,9.1331,2629.8,2629.4,3.0]
[1724307372160,0.05110838,2629.5,2629.4,3.0]
[1724307372381,9.1331,2629.8,2629.3,1.3]
[1724307372591,9.1331,2629.8,2629.3,1.97099884]
[1724307372788,0.05114014,2629.7,2629.3,4.3]
[1724307373116,9.1331,2629.8,2629.4,1.32207081]
[1724307373276,0.05112426,2629.6,2629.4,4.32207081]
[1724307373460,9.1331,2629.8,2629.4,3.0]
[1724307373663,0.05114014,2629.7,2629.5,1.3]
[1724307373860,0.05114014,2629.7,2629.5,4.3]
[1724307374186,9.2753,2630.1,2629.6,2.22790053]
[1724307374378,9.2753,2630.1,2629.8,1.3]
[1724307374702,9.2753,2630.1,2629.8,4.3]
[1724307375065,9.2753,2630.1,2629.8,1.3]
[1724307377705,9.7612,2630.5,2629.8,1.3]
[1724307377907,1.51593735,2630.4,2629.8,1.3]
[1724307384312,0.05141287,2630.3,2629.8,1.3]
[1724307385887,0.05141287,2630.3,2629.8,10.4113]
[1724307388113,0.05141287,2630.3,2629.8,9.1113]
[1724307388904,0.05141287,2630.3,2629.7,2.33877092]
[1724307389128,0.05141287,2630.3,2629.7,5.33877092]
[1724307389757,1.34394224,2630.3,2629.7,5.33877092]
[1724307390717,1.34394224,2630.3,2629.7,5.33883216]
[1724307391508,1.34394224,2630.3,2629.8,1.32191289]
[1724307391726,1.34394224,2630.3,2629.8,4.32191289]
[1724307392035,1.34394224,2630.3,2629.8,3.35598407]
[1724307392237,1.34394224,2630.3,2629.7,5.33889834]
[1724307392531,9.5365,2630.1,2629.7,3.35598407]
[1724307392699,9.5365,2630.1,2629.5,1.1763396]
[1724307392700,9.5365,2630.1,2629.6,0.35598407]
[1724307392901,0.05139108,2630.0,2629.6,0.35598407]
[1724307393101,9.5365,2630.1,2629.6,0.35598407]
[1724307393433,0.05137521,2629.9,2629.6,0.35598407]
[1724307393602,1.04663988,2630.0,2629.6,0.21128907]
[1724307393801,0.05135933,2629.8,2629.6,0.21128907]
[1724307394002,0.9952488,2630.0,2629.6,0.21128907]
[1724307394241,0.05134346,2629.7,2629.6,0.21128907]
[1724307394428,1.05317488,2629.9,2629.6,1.53329708]
[1724307394752,1.05317488,2629.9,2629.6,3.0]
[1724307394753,0.05134433,2629.8,2629.6,3.0]
[1724307394950,0.05134433,2629.8,2629.5,3.0]
[1724307395253,0.05134433,2629.8,2629.6,1.32201078]
[1724307395557,0.05134433,2629.8,2629.5,3.0]
[1724307395860,0.05134433,2629.8,2629.6,1.32202771]
[1724307397935,9.5365,2630.1,2629.6,1.32202771]
[1724307398137,1.1252488,2630.0,2629.6,1.32202771]
[1724307398302,1.17669982,2630.0,2629.6,1.32202771]
[1724307400443,1.17669982,2630.0,2629.5,3.0]
[1724307400444,9.8579,2629.9,2629.5,3.0]
[1724307400612,9.8579,2629.9,2629.4,3.0]
[1724307400800,9.90931515,2629.9,2629.5,1.32211143]
[1724307400999,9.90931515,2629.9,2629.3,3.7959396]
[1724307401196,9.90931515,2629.9,2629.4,1.32209238]
[1724307401408,0.99093152,2629.8,2629.4,2.11803198]
[1724307401626,1.0423308,2629.8,2629.5,1.32209238]
[1724307402143,1.0423308,2629.8,2629.3,4.1767396]
[1724307402435,1.0423308,2629.8,2629.4,1.32208926]
[1724307402843,0.99093152,2629.8,2629.4,2.11802886]
[1724307403017,0.05135343,2629.7,2629.4,5.11802886]
[1724307403245,0.05135343,2629.7,2629.5,1.32208926]
[1724307403411,0.99093152,2629.8,2629.5,4.32208926]
[1724307403611,0.99093152,2629.8,2629.5,3.0]
[1724307403838,0.05135343,2629.7,2629.4,0.7959396]
[1724307404047,0.05135343,2629.7,2629.4,1.32205426]
[1724307404339,0.05132992,2629.6,2629.4,4.32205426]
[1724307404571,0.99093152,2629.8,2629.5,1.32205426]
[1724307404873,0.99093152,2629.8,2629.5,3.0]
[1724307405375,0.99093152,2629.8,2629.3,5.0959396]
[1724307405673,0.99093152,2629.8,2629.4,1.67831377]
[1724307405875,0.99093152,2629.8,2629.5,1.67831377]
[1724307406192,0.99093152,2629.8,2629.5,3.35623168]
[1724307406578,0.99093152,2629.8,2629.6,3.0]
[1724307406779,0.99093152,2629.8,2629.5,0.35623168]
[1724307407098,9.8579,2629.9,2629.4,0.35623168]
[1724307407289,9.8579,2629.9,2629.5,1.67830023]
[1724307407541,9.8579,2629.9,2629.5,0.35620494]
[1724307407701,0.98579,2629.8,2629.5,0.35620494]
[1724307408057,0.98579,2629.8,2629.4,0.35620494]
[1724307408252,9.8579,2629.9,2629.5,1.6782742]
[1724307408592,9.8579,2629.9,2629.4,3.35620494]
[1724307408773,9.8579,2629.9,2629.5,1.67827367]
[1724307409090,9.8579,2629.9,2629.4,3.35620494]
[1724307409289,10.84369,2629.9,2629.5,1.67827393]
[1724307409455,10.84369,2629.9,2629.4,3.35620494]
[1724307409788,10.84369,2629.9,2629.5,1.67827366]
[1724307409999,10.84369,2629.9,2629.4,3.35620494]
[1724307410306,10.84369,2629.9,2629.5,1.67827418]
[1724307410546,1.084369,2629.8,2629.5,0.35620494]
[1724307410719,1.084369,2629.8,2629.3,5.0959396]
[1724307410858,9.8579,2629.9,2629.5,0.35615856]
[1724307411052,9.8579,2629.9,2629.4,3.35615856]
[1724307411287,10.84369,2629.9,2629.5,1.67822711]
[1724307411558,10.84369,2629.9,2629.4,4.15209816]
[1724307411754,10.84369,2629.9,2629.5,1.6781962]
[1724307412088,10.84369,2629.9,2629.6,1.6781962]
[1724307412418,9.8579,2629.9,2629.5,0.35615856]
[1724307412706,9.8579,2629.9,2629.6,1.32201918]
[1724307412915,9.8579,2629.9,2629.6,0.35615856]
[1724307413121,9.8579,2629.9,2629.5,0.35615856]
[1724307413411,9.8579,2629.9,2629.4,3.7959396]
[1724307413412,9.8579,2629.9,2629.6,1.67818156]
[1724307413566,9.8579,2629.9,2629.5,0.35615856]
[1724307413746,9.8579,2629.9,2629.6,1.67816385]
[1724307413953,9.8579,2629.9,2629.5,0.35615856]
[1724307414192,9.8579,2629.9,2629.6,1.67816817]
[1724307414455,0.05120183,2629.8,2629.5,0.35615856]
[1724307414774,0.05120183,2629.8,2629.6,1.67818248]
[1724307415131,0.05120183,2629.8,2629.4,3.7959396]
[1724307415132,0.05120183,2629.8,2629.5,0.35615856]
[1724307415267,0.05120183,2629.8,2629.4,3.7959396]
[1724307415268,0.05120183,2629.8,2629.6,1.6781659]
[1724307415635,0.05120183,2629.8,2629.5,0.35615856]
[1724307415921,0.05120183,2629.8,2629.6,1.67819771]
[1724307416084,0.05120183,2629.8,2629.5,0.35615856]
[1724307416297,0.05120183,2629.8,2629.6,1.67819805]
[1724307416519,0.05120183,2629.8,2629.5,0.35615856]
[1724307416698,0.05120183,2629.8,2629.6,1.67819794]
[1724307416907,0.05120183,2629.8,2629.5,0.35615856]
[1724307417090,0.05120183,2629.8,2629.6,1.67819424]
[1724307417419,0.05120183,2629.8,2629.5,0.35615856]
[1724307417625,0.05120183,2629.8,2629.6,1.67819615]
[1724307417771,0.05120183,2629.8,2629.5,0.35615856]
[1724307418124,0.05120183,2629.8,2629.6,1.67819615]
[1724307418416,0.05120183,2629.8,2629.7,0.47583926]
[1724307419399,0.05120183,2629.8,2629.7,0.83199782]
[1724307419561,0.05120183,2629.8,2629.7,0.47583926]
[1724307420527,0.05120183,2629.8,2629.7,0.83199782]
[1724307420725,0.05120183,2629.8,2629.7,0.47582917]
[1724307421016,0.05120183,2629.8,2629.7,0.83185809]
[1724307421324,0.05120183,2629.8,2629.7,0.47582917]
[1724307421503,0.05120183,2629.8,2629.7,0.83185809]
[1724307421673,0.05120183,2629.8,2629.7,0.47582917]
[1724307421874,0.05120183,2629.8,2629.7,0.83185809]
[1724307422117,0.05120183,2629.8,2629.7,0.47582917]
[1724307422334,0.05120183,2629.8,2629.7,0.83185809]
[1724307422484,0.05120183,2629.8,2629.7,0.47582917]
[1724307423351,0.05120183,2629.8,2629.7,0.83185809]
[1724307423552,0.05120183,2629.8,2629.7,0.47582917]
[1724307425651,0.05120183,2629.8,2629.7,0.83185809]
[1724307425865,0.05120183,2629.8,2629.7,0.47582917]
[1724307426236,0.05120183,2629.8,2629.7,0.83185809]
[1724307426401,0.05120183,2629.8,2629.7,0.47582917]
[1724307427124,0.05120183,2629.8,2629.7,0.83187691]
[1724307427362,0.05120183,2629.8,2629.7,0.47582917]
[1724307427858,0.05120183,2629.8,2629.7,0.83187691]
[1724307428157,0.05120183,2629.8,2629.7,0.47582917]
[1724307428506,0.05120183,2629.8,2629.7,0.83187691]
[1724307428708,0.05120183,2629.8,2629.7,0.47582917]
[1724307429965,0.05120183,2629.8,2629.4,5.77899804]
[1724307430182,0.05120183,2629.8,2629.7,0.47583804]
[1724307430476,0.05120183,2629.8,2629.5,0.47583804]
[1724307430628,0.05120183,2629.8,2629.6,1.32203887]
[1724307430831,0.05120183,2629.8,2629.4,3.7959396]
[1724307431133,0.05120183,2629.8,2629.5,1.32205404]
[1724307432436,0.05120183,2629.8,2629.6,1.32205411]
[1724307432634,0.05120183,2629.8,2629.4,3.7959396]
[1724307432833,0.05120183,2629.8,2629.5,1.32205442]
[1724307433638,0.05120183,2629.8,2629.5,2.11799402]
[1724307434082,0.05120183,2629.8,2629.6,1.32205442]
[1724307434371,0.05120183,2629.8,2629.4,5.77902076]
[1724307434594,0.05120183,2629.8,2629.5,1.3220485]
[1724307434725,0.05120183,2629.8,2629.5,2.1179881]
[1724307436472,0.05120183,2629.8,2629.5,1.3220485]
[1724307436649,0.05120183,2629.8,2629.6,1.3220485]
[1724307436854,0.05120183,2629.8,2629.5,0.7959396]
[1724307437049,0.05120183,2629.8,2629.6,1.32202543]
[1724307437254,0.05120183,2629.8,2629.6,4.32202543]
[1724307437440,0.05120183,2629.8,2629.5,0.7959396]
[1724307437641,0.05120183,2629.8,2629.6,1.32203123]
[1724307437848,0.05120183,2629.8,2629.6,3.0]
[1724307438128,0.05120183,2629.8,2629.5,3.7959396]
[1724307438430,0.05120183,2629.8,2629.6,1.32203137]
[1724307438672,0.05120183,2629.8,2629.7,1.32203137]
[1724307442291,0.05120183,2629.8,2629.7,1.32198633]
[1724307442466,0.05120183,2629.8,2629.7,25.71479104]
[1724307442656,9.252,2630.7,2630.2,3.80198]
[1724307442997,0.05042815,2630.6,2630.5,1.3]
[1724307443151,9.252,2630.9,2630.5,1.3]
[1724307443152,9.252,2630.9,2630.5,8.40104932]
[1724307443353,9.252,2630.9,2630.5,1.3]
[1724307443560,9.252,2630.9,2630.5,4.3]
[1724307443853,0.04872865,2630.8,2630.5,1.3]
[1724307444066,9.252,2630.9,2630.5,1.3]
[1724307444270,0.04871278,2630.7,2630.5,1.3]
[1724307444589,9.252,2630.9,2630.5,1.3]
[1724307444792,0.04869692,2630.6,2630.5,1.3]
[1724307444990,9.252,2630.9,2630.5,1.3]
[1724307445294,0.04869692,2630.6,2630.5,1.3]
[1724307445455,10.1772,2630.9,2630.5,1.3]
[1724307445813,9.252,2630.9,2630.5,1.3]
[1724307445956,0.04872865,2630.8,2630.5,1.3]
[1724307446495,0.04872865,2630.8,2630.3,5.0]
[1724307446667,0.04872865,2630.8,2630.4,0.55]
[1724307447475,0.04872865,2630.8,2630.3,3.0]
[1724307447692,0.97880152,2630.8,2630.2,4.3]
[1724307447874,9.6146,2630.7,2630.2,3.0]
[1724307448070,9.6146,2630.7,2630.0,5.3808]
[1724307448283,9.6146,2630.7,2630.1,0.55]
[1724307448284,0.04909914,2630.6,2630.1,0.55]
[1724307448482,0.04909914,2630.6,2630.1,3.55]
[1724307448862,9.6146,2630.7,2630.1,3.55]
[1724307449309,0.04905917,2630.6,2630.2,1.3]
[1724307450858,0.04905917,2630.6,2630.2,2.9053999]
[1724307451077,9.6146,2630.7,2630.3,3.0]
[1724307452396,9.5776,2631.3,2630.4,1.3]
[1724307452602,1.11743435,2631.2,2630.6,1.3]
[1724307454095,9.411,2631.1,2630.4,4.6808]
[1724307456702,9.411,2631.1,2630.4,8.48248]
[1724307456878,9.411,2631.1,2630.5,9.25]
[1724307457075,9.2932,2631.7,2630.8,1.3]
[1724307457392,9.2723,2631.5,2630.8,1.3]
[1724307458299,10.5723,2631.4,2630.6,5.0]
[1724307458603,10.5723,2631.4,2630.7,3.0]
[1724307458792,9.2723,2631.2,2630.6,2.0]
[1724307459491,1.05723,2631.3,2630.6,0.7]
[1724307459492,9.32216844,2631.1,2630.6,0.7]
[1724307459671,9.32216844,2631.1,2630.4,4.6808]
[1724307459875,10.36010828,2631.1,2630.4,4.6808]
[1724307461105,10.36010828,2631.1,2630.5,3.0]
[1724307461406,10.36010828,2631.1,2630.3,3.7]
[1724307461612,10.36010828,2631.1,2630.4,4.85]
[1724307461903,9.0496,2630.9,2630.4,1.85]
[1724307462107,9.0496,2630.9,2630.4,4.85]
[1724307462298,0.04966689,2630.8,2630.4,4.85]
[1724307462904,0.04966689,2630.8,2630.4,3.55]
[1724307463113,0.04966689,2630.8,2630.5,3.0]
[1724307463411,0.04966689,2630.8,2630.5,4.3]
[1724307464079,9.986,2631.3,2630.7,1.3]
[1724307464297,9.986,2631.3,2630.9,1.3]
[1724307464511,0.04971272,2631.2,2630.9,1.3]
[1724307464868,9.986,2631.3,2630.9,1.3]
[1724307465078,0.04969686,2631.1,2630.9,1.3]
[1724307465309,9.986,2631.3,2630.9,1.3]
[1724307465510,10.9846,2631.3,2630.7,4.3]
[1724307465710,0.04971272,2631.2,2630.7,4.3]
[1724307466183,0.04971272,2631.2,2630.7,1.3]
[1724307466583,1.15314399,2631.2,2630.7,1.3]
[1724307466791,1.15314399,2631.2,2630.6,0.7]
[1724307466985,1.15314399,2631.2,2630.7,0.55]
[1724307466986,9.46,2631.1,2630.7,0.55]
[1724307467186,9.50977938,2631.1,2630.7,0.55]
[1724307468072,9.50977938,2631.1,2630.5,3.0]
[1724307468711,9.46,2631.1,2630.4,1.3]
[1724307468915,9.459,2630.9,2630.4,1.3]
[1724307469411,0.04977675,2630.8,2630.4,1.3]
[1724307471315,0.04977675,2630.8,2630.1,3.0]
[1724307471484,9.6344,2630.7,2630.2,1.3]
[1724307471879,0.04963516,2630.6,2630.2,1.3]
[1724307472476,9.1665,2630.5,2630.2,1.3]
[1724307472888,0.0495958,2630.4,2630.2,1.3]
[1724307473484,0.0495958,2630.4,2630.3,0.3808]
[1724307473699,0.0495958,2630.4,2630.3,3.3808]
[1724307473879,9.9749,2630.7,2630.3,3.3808]
[1724307474081,0.04949593,2630.4,2630.3,3.3808]
[1724307474276,9.7106,2631.3,2630.3,9.03264]
[1724307474481,9.5175,2631.1,2630.6,1.3]
[1724307477679,9.5175,2631.1,2630.5,3.0]
[1724307478719,9.5175,2631.1,2630.4,4.3]
[1724307484637,9.5175,2631.1,2630.6,1.3]
[1724307484838,10.6043596,2631.1,2630.6,1.3]
[1724307485959,10.6043596,2631.1,2630.8,1.3]
[1724307485960,9.5175,2631.1,2630.8,1.3]
[1724307486174,9.2119,2631.5,2630.8,1.3]
[1724307486465,9.2119,2631.5,2630.8,4.3]
[1724307486610,10.33247556,2631.5,2630.8,4.3]
[1724307487309,10.33247556,2631.5,2630.8,5.06104708]
[1724307487604,1.59674352,2631.5,2631.0,1.3]
[1724307487941,11.44184352,2631.8,2631.0,4.3]
[1724307488116,13.2948425,2631.8,2631.2,1.3]
[1724307489237,0.04994755,2631.7,2631.2,1.3]
[1724307489633,9.4606,2631.6,2631.0,4.65503339]
[1724307489942,0.95105476,2631.5,2631.0,4.65503339]
[1724307490316,0.04989998,2631.4,2631.0,4.65503339]
[1724307490743,0.04989998,2631.4,2631.1,0.4755661]
[1724307490905,0.04989998,2631.4,2631.2,0.4755661]
[1724307491106,9.4606,2631.6,2631.0,4.65503339]
[1724307491107,9.4606,2631.3,2631.0,3.0]
[1724307491352,9.51073374,2631.3,2630.9,0.7]
[1724307491714,9.51073374,2631.3,2630.9,2.0]
[1724307492446,9.51073374,2631.3,2630.9,0.7]
[1724307495621,9.51073374,2631.3,2631.0,1.3]
[1724307497434,9.51073374,2631.3,2630.9,3.7]
[1724307497636,9.51073374,2631.3,2631.0,3.0]
[1724307497888,9.51073374,2631.3,2630.9,0.7]
[1724307507536,9.51073374,2631.3,2630.7,3.35512525]
[1724307507537,9.9554,2631.1,2630.7,3.35512525]
[1724307507849,0.04845687,2631.0,2630.7,3.0]
[1724307508013,0.04845687,2631.0,2630.6,0.3808]
[1724307508324,9.8587,2630.9,2630.5,3.0]
[1724307508737,0.04847008,2630.8,2630.4,4.0808]
[1724307508885,9.8587,2630.9,2630.4,4.0808]
[1724307509227,0.04845422,2630.7,2630.4,4.0808]
[1724307509385,9.8587,2630.9,2630.4,4.0808]
[1724307509923,0.04847008,2630.8,2630.4,4.0808]
[1724307510329,9.8596,2630.7,2630.4,3.0]
[1724307510500,1.11587332,2630.8,2630.3,0.35536553]
[1724307510501,0.07668623,2630.6,2630.3,0.35536553]
[1724307510824,9.8596,2630.5,2630.0,2.45144902]
[1724307511028,9.8596,2630.5,2630.1,1.32169364]
[1724307511184,9.90792252,2630.5,2630.1,1.32169364]
[1724307511606,9.8596,2630.5,2630.1,1.32169364]
[1724307511828,9.8596,2630.5,2630.1,4.32169364]
[1724307512000,10.82286,2630.4,2630.1,3.0]
[1724307512197,9.8369,2630.4,2630.0,5.33816144]
[1724307512522,9.8369,2630.4,2630.0,5.33812943]
[1724307514125,9.8369,2630.4,2630.1,1.32170377]
[1724307514539,9.8369,2630.4,2630.1,2.62170377]
[1724307514738,9.8369,2630.4,2630.2,3.0]
[1724307514920,9.3384,2630.9,2630.3,1.3]
[1724307515537,9.3384,2630.9,2630.0,10.28088148]
[1724307515538,9.3384,2630.9,2630.1,1.6808]
[1724307516420,11.0749,2630.8,2630.1,1.6808]
[1724307516615,9.7749,2630.6,2630.1,1.6808]
[1724307519427,0.04806206,2630.5,2630.1,1.6808]
[1724307522917,0.04806206,2630.5,2630.1,11.53843449]
[1724307523118,9.8158,2631.1,2630.3,1.3]
[1724307523364,9.8158,2631.1,2630.5,1.3]
[1724307523561,9.8158,2631.1,2630.7,1.3]
[1724307524964,9.8158,2631.1,2630.6,3.0]
[1724307525140,9.8158,2631.1,2630.5,1.3]
[1724307525539,9.8158,2631.1,2630.4,3.3808]
[1724307525738,3.80043,2631.3,2630.4,3.0]
[1724307525739,9.8158,2630.9,2630.4,3.0]
[1724307529965,9.6259,2630.7,2630.4,3.0]
[1724307530128,9.6259,2630.7,2630.1,0.3808]
[1724307530463,10.71849,2630.7,2630.1,0.3808]
[1724307531333,10.71849,2630.7,2629.9,3.0]
[1724307531850,9.6259,2630.5,2629.9,3.0]
[1724307534247,9.35834282,2630.4,2629.9,3.0]
[1724307534669,3.12,2630.1,2629.6,0.79608349]
[1724307534859,3.12,2630.1,2629.1,0.19107919]
[1724307534860,9.312,2629.8,2628.8,2.77924588]
[1724307535093,9.312,2629.8,2628.9,4.0]
[1724307535392,0.04599095,2629.7,2628.9,7.80385]
[1724307535605,0.04599095,2629.7,2629.0,1.05830959]
[1724307536769,0.04599095,2629.7,2629.0,4.05830959]
[1724307537193,0.04599095,2629.7,2629.0,1.05830959]
[1724307540680,9.7226,2629.6,2629.0,1.05830959]
[1724307540876,9.76828244,2629.6,2629.0,1.05830959]
[1724307541211,9.76828244,2629.6,2628.9,3.0]
[1724307541212,0.07668623,2629.5,2628.9,3.0]
[1724307541372,9.5753,2629.4,2628.9,3.0]
[1724307541571,9.62095775,2629.4,2628.6,4.50423]
[1724307541909,9.62095775,2629.4,2628.7,3.0]
[1724307542074,9.62095775,2629.4,2628.7,3.0760731]
[1724307542774,9.62095775,2629.4,2628.8,0.55]
[1724307544053,9.62095775,2629.4,2628.8,5.539796]
[1724307544224,9.62095775,2629.4,2628.9,3.0]
[1724307544949,0.04565775,2629.4,2629.2,3.80342]
[1724307545121,9.4483,2629.8,2629.3,3.0]
[1724307545327,9.4483,2629.8,2629.4,0.3]